{"text_format":"1","workbook":"xlsx","n_sheets":2,"sheets":["Sheet1","list"],"not_rendered":{"charts":0,"images":1,"macros":1,"external_links":0,"defined_names":0,"comments":0,"pivot_tables":0},"unopened":[],"bounds":{"document_bytes":16777216,"sheet_cells":100000,"rows_first":2000,"rows_last":500,"rows_between":2000,"halvings":0,"cell_chars":16384,"cell_head_chars":4096},"cells_cut":0,"cells_raw":0,"read":"whole","date_system":"1900"}

{"sheet":"Sheet1","index":0,"n_rows":11,"n_cols":17,"rows_kept":11,"cut":false,"hidden":false,"merged":[]}
[]
["Violation number","Violation status description","Violation status description","Violator ID","Sequence Number","Vehicle plate","Plate Type","Violation total amount","Violation city","Violation Hijrah date","Violation payment Hijrah date","Violation payment Gregorian date","Violation time","New Time","Violation item amount","Violation item arabic description","Violation item english description"]
["6414024401","غير مسددة","UNPAID VIOLATION",null,560110310,{"$f":"INDEX(list!$A$2:$A$44,MATCH(E3,list!$B$2:$B$44,0))","v":"TM 21"},"a",null,"الرياض","1445-07-17","",{"$f":"DGreg(J3)","v":"27/01/2024"},"16:06",{"$f":"TEXT(M3,\"h:mm:ss AM/PM\")","v":"4:06:00 PM"},34,"دخول شاحنات أو معدات ثقيلة المدن أو الخروج منها في أوقات غير مسموحة - رصد آلي","Trucks or Heavy Machinery Entering or Exiting Cities During Unauthorized Time - Auto Detection"]
["6411688517","غير مسددة","UNPAID VIOLATION",null,471100310,{"$f":"INDEX(list!$A$2:$A$44,MATCH(E4,list!$B$2:$B$44,0))","v":"TM 34"},"a",null,"الرياض","1445-07-07","",{"$f":"DGreg(J4)","v":"17/01/2024"},"12:22",{"$f":"TEXT(M4,\"h:mm:ss AM/PM\")","v":"12:22:00 PM"},2,"دخول شاحنات أو معدات ثقيلة المدن أو الخروج منها في أوقات غير مسموحة - رصد آلي","Trucks or Heavy Machinery Entering or Exiting Cities During Unauthorized Time - Auto Detection"]
["6409037377","غير مسددة","UNPAID VIOLATION",null,621678310,{"$f":"INDEX(list!$A$2:$A$44,MATCH(E5,list!$B$2:$B$44,0))","v":"TM 45"},"bb",null,"الرياض","1445-06-27","","08/01/2024","16:07","4:07:00 PM",3,"دخول شاحنات أو معدات ثقيلة المدن أو الخروج منها في أوقات غير مسموحة - رصد آلي","Trucks or Heavy Machinery Entering or Exiting Cities During Unauthorized Time - Auto Detection"]
["6408963093","غير مسددة","UNPAID VIOLATION",null,275178310,{"$f":"INDEX(list!$A$2:$A$44,MATCH(E6,list!$B$2:$B$44,0))","v":"TM 47"},"bb",null,"الرياض","1445-06-27","","08/01/2024","15:16","3:16:00 PM",22,"دخول شاحنات أو معدات ثقيلة المدن أو الخروج منها في أوقات غير مسموحة - رصد آلي","Trucks or Heavy Machinery Entering or Exiting Cities During Unauthorized Time - Auto Detection"]
["6408529766","غير مسددة","UNPAID VIOLATION",null,732100310,{"$f":"INDEX(list!$A$2:$A$44,MATCH(E7,list!$B$2:$B$44,0))","v":"TM 23"},"bb",null,"الرياض","1445-06-25","","06/01/2024","17:32","5:32:00 PM",4,"دخول شاحنات أو معدات ثقيلة المدن أو الخروج منها في أوقات غير مسموحة - رصد آلي","Trucks or Heavy Machinery Entering or Exiting Cities During Unauthorized Time - Auto Detection"]
["6410988352","غير مسددة","UNPAID VIOLATION",null,603100310,{"$f":"INDEX(list!$A$2:$A$44,MATCH(E8,list!$B$2:$B$44,0))","v":"TM 25"},"bb",null,"الرياض","1445-07-04","","14/01/2024","16:52","4:52:00 PM",10.6666666666667,"دخول شاحنات أو معدات ثقيلة المدن أو الخروج منها في أوقات غير مسموحة - رصد آلي","Trucks or Heavy Machinery Entering or Exiting Cities During Unauthorized Time - Auto Detection"]
["6408989600","غير مسددة","UNPAID VIOLATION",null,263636310,{"$f":"INDEX(list!$A$2:$A$44,MATCH(E9,list!$B$2:$B$44,0))","v":{"$error":"#N/A"}},"a",null,"الرياض","1445-06-27","","08/01/2024","17:26","5:26:00 PM",11.1666666666667,"عدم ربط حزام الامان - رصد آلي","Not Wearing a Seatbelt - Auto Detection"]
["6408672430","غير مسددة","UNPAID VIOLATION",null,816178310,{"$f":"INDEX(list!$A$2:$A$44,MATCH(E10,list!$B$2:$B$44,0))","v":"TM 37"},"bb",null,"الرياض","1445-06-25","","06/01/2024","16:11","4:11:00 PM",11.6666666666667,"دخول شاحنات أو معدات ثقيلة المدن أو الخروج منها في أوقات غير مسموحة - رصد آلي","Trucks or Heavy Machinery Entering or Exiting Cities During Unauthorized Time - Auto Detection"]
["6412515377","غير مسددة","UNPAID VIOLATION",null,830110310,{"$f":"INDEX(list!$A$2:$A$44,MATCH(E11,list!$B$2:$B$44,0))","v":"TM 26"},"a",null,"الرياض","1445-07-10","","20/01/2024","15:57","3:57:00 PM",12.1666666666667,"دخول شاحنات أو معدات ثقيلة المدن أو الخروج منها في أوقات غير مسموحة - رصد آلي","Trucks or Heavy Machinery Entering or Exiting Cities During Unauthorized Time - Auto Detection"]

{"sheet":"list","index":1,"n_rows":44,"n_cols":2,"rows_kept":44,"cut":false,"hidden":false,"merged":[]}
["Car Name","Sequence Number"]
["P 36-7",662100310]
["P 36-8",354400310]
["P 41",251100310]
["P 48",842100310]
["P 55",693877310]
["TM 21",560110310]
["TM 22",74400310]
["TM 23",732100310]
["TM 26",830110310]
["TM 27",802100310]
["TM 28",428010310]
["TM 30",328010310]
["TM 31",2100310]
["TM 32",228010310]
["TM 34",471100310]
["TM 25",603100310]
["TM 37",816178310]
["TM 38",355178310]
["TM 39",546178310]
["TM 40",876178310]
["TM 41",471678310]
["TM 44",556178310]
["TM 45",621678310]
["TM 47",275178310]
["TM 48",156178310]
["TM 49",136178310]
["TM 50",565178310]
["TM 51","??"]
["TM 52","???"]
["TM 53","????"]
["TM 54","??"]
["TM 55","???"]
["TM 56","????"]
["TM 57","??"]
["TM 58","???"]
["TM 59","????"]
["TM 60","??"]
["TM 61","??"]
["TM 62","???"]
["TM 63","????"]
["TM 64","??"]
["TM 65","???"]
["TM 66","????"]